fUSD/lending_fUSD_20251025
["ID","MTS","AMOUNT","RATE_DAILY","PERIOD"]
[392387701,1761418235747,-150.35,0.00031497,2]
[392387702,1761418235757,-150.35,0.00031497,2]
[392387703,1761418235766,-150.35,0.00031497,2]
[392387704,1761418235775,-150.35,0.00031497,2]
[392387705,1761418235785,-150.35,0.00031497,2]
[392387706,1761418235795,-150.35,0.00031497,2]
[392387707,1761418235804,-150.35,0.00031497,2]
[392387708,1761418235814,-150.35,0.00031497,2]
[392387709,1761418235823,-150.35,0.00031497,2]
[392387710,1761418235832,-150.35,0.00031497,2]
[392387711,1761418235842,-150.35,0.00031497,2]
[392387712,1761418235851,-150.35,0.00031497,2]
[392387713,1761418235860,-150.35,0.00031497,2]
[392387714,1761418235869,-150.35,0.00031497,2]
[392387715,1761418235878,-150.35,0.00031497,2]
[392387716,1761418235887,-150.35,0.00031497,2]
[392387717,1761418235898,-150.35,0.00031497,2]
[392387718,1761418235908,-150.35,0.00031497,2]
[392387719,1761418235919,-150.35,0.00031497,2]
[392387720,1761418235929,-150.35,0.00031497,2]
[392387721,1761418235938,-150.35,0.00031497,2]
[392387722,1761418235947,-150.35,0.00031497,2]
[392387723,1761418235957,-164.03034151,0.000315,7]
[392387724,1761418235966,-2500.0,0.000315,7]
[392387725,1761418235975,-1488.91083811,0.000315,7]
[392387726,1761418235987,-1011.08916189,0.000315,7]
[392387727,1761418235997,-477.894,0.000315,29]
[392387728,1761418236006,-2500.0,0.000315,7]
[392387729,1761418236015,-901.0,0.00031507,5]
[392387730,1761418236025,-173081.03584479,0.00031507,120]
[392387731,1761418236036,-1254.41808677,0.00031507,120]
[392387732,1761418236047,-575.5195648,0.00031507,120]
[392387738,1761418238295,-151.0,0.00030514,30]
[392387740,1761418238305,-151.0,0.00030514,30]
[392387742,1761418238314,-184.813942,0.00030514,30]
[392387743,1761418238323,-151.0,0.00030514,30]
[392387744,1761418238332,-184.813942,0.00030514,30]
[392387745,1761418238341,-96.752116,0.00030888,30]
[392387746,1761418238429,-54.247884,0.00030888,30]
[392387747,1761418238439,-151.0,0.00030888,30]
[392387748,1761418238449,-184.813942,0.00030888,30]
[392387749,1761418238459,-151.0,0.00031,30]
[392387750,1761418238469,-30.5718762,0.00031,30]
[392387751,1761418238481,-120.4281238,0.00031,30]
[392387752,1761418238491,-184.813942,0.00031,30]
[392387753,1761418238500,-151.0,0.00031124,30]
[392387754,1761418238509,-151.0,0.00031124,30]
[392387755,1761418238519,-151.0,0.00031124,30]
[392387756,1761418238528,-184.813942,0.00031124,30]
[392387757,1761418238538,-151.0,0.00031124,30]
[392387758,1761418238547,-184.813942,0.00031124,30]
[392387759,1761418238557,-195.67347599,0.00031407,2]
[392387760,1761418238567,-151.0,0.00031497,2]
[392387761,1761418238576,-331.13247844,0.00031497,2]
[392387762,1761418238586,-331.13247844,0.00031497,2]
[392387763,1761418238595,-536.57400562,0.00031507,120]
[392387764,1761418238612,-184.813942,0.00030888,30]
[392387766,1761418238622,-462.47404092,0.00031507,120]
[392387768,1761418238636,-3574.68562214,0.00031507,120]
[392387780,1761418240507,-184.813942,0.00030514,30]
[392387781,1761418240516,-151.0,0.00030514,30]
[392387782,1761418240525,-151.0,0.00030888,30]
[392387783,1761418240535,-184.813942,0.00030888,30]
[392387784,1761418240544,-184.813942,0.00031,30]
[392387785,1761418240553,-151.0,0.00031,30]
[392387786,1761418240562,-184.813942,0.00031,30]
[392387787,1761418240571,-184.813942,0.00031124,30]
[392387788,1761418240580,-184.813942,0.00031124,30]
[392387789,1761418240590,-151.0,0.00031124,30]
[392387790,1761418240599,-151.0,0.00031124,30]
[392387791,1761418240608,-162663.59478707,0.00031507,120]
[392387792,1761418240623,-503.71024779,0.00031507,120]
[392387793,1761418240776,-5467.06713912,0.00031507,120]
[392387800,1761418240882,-21276.71155247,0.00031507,120]
[392387819,1761418243611,-500.0,0.00023999,2]
[392387820,1761418243620,-500.0,0.00023999,2]
[392387821,1761418243629,-500.0,0.00023999,2]
[392387822,1761418243638,-634.96150616,0.00023999,2]
[392387823,1761418243647,-184.813942,0.00030514,30]
[392387824,1761418243660,-151.0,0.00030888,30]
[392387825,1761418243669,-184.813942,0.00030888,30]
[392387826,1761418243679,-151.0,0.00031,30]
[392387827,1761418243688,-184.813942,0.00031,30]
[392387828,1761418243698,-184.813942,0.00031124,30]
[392387829,1761418243707,-184.813942,0.00031124,30]
[392387830,1761418243717,-245.939742,0.00031124,30]
[392387831,1761418243727,-184.813942,0.00031124,30]
[392387832,1761418243737,-184.813952,0.00031124,30]
[392387833,1761418243746,-2718.16802785,0.00031507,120]
[392387834,1761418243774,-736.00102635,0.00031507,120]
[392387835,1761418243785,-964.97318599,0.00031507,120]
[392387836,1761418243834,-23.36390489,0.00031507,120]
[392387837,1761418246552,-500.0,0.00023999,2]
[392387838,1761418246562,-155.5874998,0.00023999,2]
[392387839,1761418246712,-344.4125002,0.00023999,2]
[392387840,1761418246721,-350.0,0.00023999,2]
[392387841,1761418246733,-4065.78012524,0.00031507,120]
[392387842,1761418246743,-471.66999995,0.00031507,120]
[392387843,1761418246771,-10069.49542598,0.00031507,120]
[392388629,1761418623899,346.3,0.00015263,2]
[392388630,1761418624094,346.3,0.00016066,2]
[392388631,1761418624294,346.3,0.00016869,2]
[392388632,1761418624480,346.3,0.00017673,2]
[392388644,1761418663960,155.52,0.00013699,2]
[392388886,1761419027431,5000.0,0.000184,2]
[392388892,1761419058720,7693.61,0.00017,10]
[392388990,1761419192163,-346.3,0.00018476,2]
[392388991,1761419192202,-107.4,0.00018476,2]
[392389025,1761419431616,-142.6,0.00018476,2]
[392389026,1761419431627,-150.0,0.00018476,2]
[392389027,1761419431636,-346.3,0.00019279,2]
[392389028,1761419431646,-346.3,0.00020082,2]
[392389029,1761419431655,-250.0,0.00020323,2]
[392389030,1761419431824,-250.0,0.00020323,2]
[392389031,1761419431834,-346.3,0.00020886,2]
[392389032,1761419431843,-346.3,0.00021689,2]
[392389033,1761419431852,-155.52,0.00021918,2]
[392389034,1761419431863,-346.3,0.00022492,2]
[392389035,1761419431873,-346.3,0.00023296,2]
[392389036,1761419431884,-346.3,0.00024099,2]
[392389037,1761419431894,-4575.0,0.000245,3]
[392389038,1761419431903,-980.0,0.00024901,2]
[392389039,1761419431912,-346.3,0.00024902,2]
[392389040,1761419431921,-5514.0,0.000252,5]
[392389041,1761419431930,-346.3,0.00025705,2]
[392389042,1761419431939,-154.39,0.00026097,7]
[392389043,1761419431949,-169.51,0.00026243,2]
[392389044,1761419431958,-346.3,0.00026509,2]
[392389045,1761419431967,-346.3,0.00027312,2]
[392389046,1761419431976,-154.39,0.00027872,7]
[392389047,1761419431985,-346.3,0.00028115,2]
[392389048,1761419431994,-2372.05,0.00028747,2]
[392389049,1761419432003,-426.34,0.00028864,2]
[392389050,1761419432013,-150.0,0.000289,2]
[392389051,1761419432025,-200.0,0.00028909,2]
[392389052,1761419432034,-346.3,0.00028919,2]
[392389053,1761419432043,-480.29,0.00028971,2]
[392389054,1761419432052,-150.0,0.00028971,2]
[392389055,1761419432062,-287.37,0.00029003,14]
[392389056,1761419432072,-200.0,0.00029003,2]
[392389057,1761419432081,-200.0,0.00029003,2]
[392389058,1761419432090,-151.0,0.00029003,2]
[392389059,1761419432099,-151.0,0.00029003,2]
[392389060,1761419432109,-151.0,0.00029003,2]
[392389061,1761419432118,-151.0,0.00029003,2]
[392389062,1761419432127,-151.0,0.00029003,2]
[392389064,1761419432136,-151.0,0.00029003,2]
[392389066,1761419432146,-151.0,0.00029003,2]
[392389068,1761419432156,-151.0,0.00029003,2]
[392389070,1761419432165,-151.0,0.00029003,2]
[392389072,1761419432174,-151.0,0.00029003,2]
[392389074,1761419432183,-151.0,0.00029003,2]
[392389076,1761419432192,-151.0,0.00029003,2]
[392389078,1761419432201,-151.0,0.00029003,2]
[392389080,1761419432210,-151.0,0.00029003,2]
[392389082,1761419432219,-151.0,0.00029003,2]
[392389084,1761419432228,-151.0,0.00029003,2]
[392389086,1761419432237,-224.56445213,0.00029003,2]
[392389088,1761419432247,-1000.0,0.00029021,2]
[392389090,1761419432260,-170.53,0.00029103,2]
[392389092,1761419432270,-168.0,0.00029109,2]
[392389094,1761419432279,-11461.68,0.00029129,2]
[392389096,1761419432289,-250.0,0.00029138,2]
[392389098,1761419432298,-500.0,0.00029165,2]
[392389100,1761419432308,-150.0,0.00029165,2]
[392389102,1761419432320,-369.02245169,0.00029165,2]
[392389104,1761419432330,-168.0,0.00029166,2]
[392389106,1761419432339,-150.0,0.00029173,2]
[392389108,1761419432348,-287.37,0.00029277,14]
[392389110,1761419432357,-168.0,0.00029348,2]
[392389112,1761419432367,-500.0,0.00029462,5]
[392389114,1761419432376,-500.0,0.00029462,5]
[392389116,1761419432385,-500.0,0.00029462,5]
[392389118,1761419432394,-500.0,0.00029462,5]
[392389120,1761419432403,-500.0,0.00029462,5]
[392389122,1761419432412,-500.0,0.00029462,2]
[392389124,1761419432421,-500.0,0.00029462,5]
[392389126,1761419432430,-500.75564392,0.00029462,5]
[392389128,1761419432439,-287.37,0.00029551,14]
[392389129,1761419432452,-1469.0,0.000296,2]
[392389130,1761419432461,-154.39,0.00029647,30]
[392389131,1761419432470,-502.2471513,0.000297,5]
[392389132,1761419432480,-346.3,0.00029722,2]
[392389133,1761419432489,-287.37,0.00029825,14]
[392389134,1761419432498,-168.0,0.00030007,2]
[392389135,1761419432508,-577.95237234,0.0003001,5]
[392389136,1761419432517,-250.48221311,0.0003001,5]
[392389137,1761419432526,-1000.0,0.0003001,5]
[392389138,1761419432536,-480.29,0.00030057,2]
[392389139,1761419432546,-287.37,0.00030099,14]
[392389140,1761419432555,-3164.36798772,0.00030132,2]
[392389141,1761419432568,-528.63201228,0.00030132,2]
[392389142,1761419432577,-155.52,0.00030137,2]
[392389143,1761419432586,-296.2334936,0.00030161,7]
[392389144,1761419432598,-3396.7665064,0.00030161,7]
[392389145,1761419432607,-168.0,0.00030178,7]
[392389146,1761419432617,-3135.4334936,0.0003026,2]
[392389149,1761419437494,-309.60591375,0.0003026,2]
[392389150,1761419437655,-394.14575585,0.0003026,2]
[392389151,1761419437709,-3624.37416342,0.0003026,2]
[392389152,1761419437720,-4004.46756001,0.0003026,2]
[392389181,1761419439612,-2173.97311337,0.0003026,2]
[392389182,1761419439622,-168.0,0.00030345,2]
[392389183,1761419439631,-346.3,0.00030525,2]
[392389184,1761419439641,-1326.72688663,0.00030558,5]
[392389185,1761419439771,-173.27311337,0.00030558,5]
[392389186,1761419439781,-200.0,0.00030563,2]
[392389187,1761419439791,-150.0,0.00030563,2]
[392389188,1761419439802,-300.0,0.00030652,7]
[392389189,1761419439813,-150.0,0.00030676,7]
[392389190,1761419439823,-168.0,0.00030704,2]
[392389191,1761419439833,-604.73954307,0.00030861,2]
[392389192,1761419439849,-88.55614487,0.00030861,2]
[392389193,1761419439858,-168.0,0.00030935,2]
[392389194,1761419439868,-168.0,0.00030998,2]
[392389195,1761419439878,-168.0,0.00031013,7]
[392389196,1761419439888,-2085.0,0.0003105,2]
[392389197,1761419439899,-2000.0,0.00031106,5]
[392389198,1761419439909,-150.63786342,0.00031142,2]
[392389199,1761419439918,-500.0,0.00031142,2]
[392389200,1761419439928,-150.0,0.00031142,2]
[392389201,1761419439937,-150.0,0.00031142,2]
[392389202,1761419439947,-168.0,0.00031142,2]
[392389203,1761419439956,-480.29,0.00031143,2]
[392389204,1761419439965,-168.0,0.00031148,7]
[392389205,1761419439975,-390.83461673,0.00031175,5]
[392389206,1761419439984,-168.0,0.00031176,2]
[392389207,1761419439996,-600.0,0.00031197,2]
[392389208,1761419440005,-382.315,0.00031303,28]
[392389209,1761419440014,-1222.8989476,0.00031379,2]
[392389210,1761419440023,-2468.3396744,0.00031379,2]
[392389211,1761419440032,-3797.2579059,0.00031379,2]
[392389212,1761419440041,-5893.46139955,0.00031379,2]
[392389213,1761419440052,-868.77742674,0.00031379,2]
[392389214,1761419440063,-381.43814977,0.00031379,2]
[392389215,1761419440076,-1765.82987385,0.00031379,2]
[392389216,1761419440087,-3498.45201411,0.00031379,2]
[392389233,1761419442688,-21928.17003408,0.00031379,2]
[392389234,1761419442699,-2500.0,0.00031397,2]
[392389235,1761419442708,-5000.0,0.00031407,2]
[392389236,1761419442717,-1000.0,0.00031407,2]
[392389237,1761419442727,-203.73541309,0.00031407,2]
[392389238,1761419442736,-45430.79953254,0.00031407,2]
[392389239,1761419442745,-154.39,0.00031422,30]
[392389240,1761419442754,-150.5,0.00031477,120]
[392389241,1761419442763,-173.19038045,0.00031478,2]
[392389242,1761419442773,-223.91,0.00031479,2]
[392389243,1761419442782,-2674.0,0.00031479,2]
[392389244,1761419442791,-46753.04816116,0.00031479,2]
[392389252,1761419445697,-1439.39003526,0.00031479,2]
[392389253,1761419445752,-639.22380711,0.00031479,2]
[392389254,1761419445763,-1350.23575165,0.00031479,2]
[392389255,1761419445913,-582.3,0.00031479,2]
[392389256,1761419446024,-1320.5499992,0.00031479,2]
[392389438,1761419933539,2342.059,0.000184,2]
[392389458,1761420307870,314142.221,0.00015,2]
[392389459,1761420307897,5580.0,0.00015,2]
[392389460,1761420307928,20000.0,0.00015,2]
[392389461,1761420307959,3451.15084733,0.00015,2]
[392389463,1761420418044,5000.00289856,0.000162,5]
[392389467,1761420463915,43394.52588238,0.0002,5]
[392389468,1761420463950,60654.83704393,0.0002,5]
[392389520,1761420631835,-505.77377179,0.0002,2]
[392389521,1761420631845,-227.26715691,0.00025,7]
[392389522,1761420631855,-884.56611869,0.0002501,2]
[392389523,1761420631866,-4930.84367137,0.0002501,2]
[392389524,1761420631877,-926.7019046,0.0002501,2]
[392389525,1761420631888,-614.37390575,0.0002501,2]
[392389526,1761420631911,-7643.51439959,0.0002501,2]
[392389527,1761420631920,-15.9864467,0.00025879,2]
[392389528,1761420631941,-2546.37994529,0.00025879,2]
[392389529,1761420631951,-592.1423566,0.0002599,2]
[392389530,1761420631960,-500.0,0.00025999,2]
[392389531,1761420631970,-4459.67579615,0.00026,2]
[392389532,1761420631979,-2596.80190196,0.00026,2]
[392389533,1761420631990,-1836.84809804,0.00026,2]
[392389534,1761420632001,-213.39383148,0.00026,2]
[392389535,1761420632014,-160.5950653,0.00026,2]
[392389536,1761420632024,-1019.09350642,0.00027,2]
[392389537,1761420632033,-530.0,0.00027,2]
[392389538,1761420632043,-17.64747503,0.0002739,2]
[392389539,1761420632054,-335.07018569,0.0002739,2]
[392389580,1761420637671,-3697.12571095,0.0002739,2]
[392389581,1761420637680,-3721.90327767,0.0002739,2]
[392389582,1761420637692,-4278.16027492,0.0002739,2]
[392389583,1761420637702,-3193.37819489,0.0002739,2]
[392389584,1761420637711,-198.08448149,0.000275,2]
[392389585,1761420637721,-541.11632356,0.000275,2]
[392389586,1761420637730,-8986.9886316,0.00028,2]
[392389587,1761420637829,-4708.80182237,0.00028,2]
[392389588,1761420637838,-14297.85105595,0.00028,2]
[392389589,1761420637851,-6752.66969488,0.00028,2]
[392389598,1761420639894,-1275.99277583,0.00028,2]
[392389599,1761420639904,-1165.61783121,0.00028,2]
[392389600,1761420639914,-4201.06081888,0.00028,2]
[392389601,1761420639924,-166.66,0.00028837,30]
[392389602,1761420639933,-331.0,0.00029052,2]
[392389603,1761420639943,-329.0,0.00029107,7]
[392389604,1761420639952,-330.0,0.00029163,2]
[392389605,1761420639962,-4815.25400938,0.00029255,2]
[392389606,1761420639971,-331.0,0.00029277,7]
[392389607,1761420639980,-166.66,0.00029444,30]
[392389608,1761420639990,-329.0,0.00029721,2]
[392389609,1761420639999,-1885.86,0.00029764,2]
[392389610,1761420640011,-329.0,0.00029879,2]
[392389611,1761420640022,-329.0,0.00030003,2]
[392389612,1761420640032,-329.0,0.00030005,2]
[392389613,1761420640041,-166.66,0.00030051,30]
[392389614,1761420640051,-308.59570963,0.0003013,2]
[392389615,1761420640060,-151.86,0.00030137,30]
[392389616,1761420640069,-330.0,0.00030196,2]
[392389617,1761420640078,-2907.86313533,0.00030219,2]
[392389618,1761420640087,-762.35,0.0003022,2]
[392389619,1761420640096,-999.0,0.00030246,3]
[392389620,1761420640106,-329.0,0.00030296,2]
[392389621,1761420640115,-329.0,0.0003031,2]
[392389622,1761420640123,-329.0,0.0003043,7]
[392389623,1761420640132,-300.0,0.0003047,2]
[392389624,1761420640143,-841.5335924,0.00030503,2]
[392389625,1761420640152,-166.66,0.00030658,30]
[392389626,1761420640162,-1118.99874413,0.00030684,2]
[392389627,1761420640171,-150.0,0.00030685,2]
[392389628,1761420640180,-150.0,0.00030685,2]
[392389629,1761420640190,-150.0,0.00030685,2]
[392389630,1761420640199,-329.0,0.00030702,2]
[392389631,1761420640209,-329.0,0.00030762,7]
[392389632,1761420640219,-349.02607331,0.00030818,2]
[392389633,1761420640229,-330.0,0.00030898,7]
[392389634,1761420640238,-329.0,0.00031033,2]
[392389635,1761420640248,-329.0,0.00031045,2]
[392389636,1761420640258,-1000.0,0.000311,2]
[392389637,1761420640271,-390.83461673,0.00031175,5]
[392389638,1761420640282,-166.66,0.00031266,30]
[392389639,1761420640291,-340.951,0.00031279,28]
[392389640,1761420640300,-220.92,0.0003136,14]
[392389641,1761420640310,-150.0,0.0003136,2]
[392389642,1761420640319,-150.63786342,0.00031376,2]
[392389643,1761420640329,-500.0,0.00031376,2]
[392389644,1761420640338,-150.0,0.00031376,2]
[392389645,1761420640348,-150.0,0.00031376,2]
[392389646,1761420640357,-151.0,0.00031376,2]
[392389647,1761420640367,-151.0,0.00031376,2]
[392389648,1761420640378,-151.0,0.00031376,2]
[392389649,1761420640387,-151.0,0.00031376,2]
[392389650,1761420640398,-151.0,0.00031376,2]
[392389651,1761420640407,-151.0,0.00031376,2]
[392389652,1761420640417,-500.0,0.00031376,2]
[392389653,1761420640427,-500.0,0.00031376,2]
[392389654,1761420640437,-151.0,0.00031376,2]
[392389655,1761420640447,-151.0,0.00031376,2]
[392389656,1761420640457,-151.0,0.00031376,2]
[392389657,1761420640466,-151.0,0.00031376,2]
[392389658,1761420640476,-151.0,0.00031376,2]
[392389659,1761420640485,-151.0,0.00031376,2]
[392389660,1761420640495,-151.0,0.00031376,2]
[392389661,1761420640504,-151.0,0.00031376,2]
[392389662,1761420640514,-151.0,0.00031376,2]
[392389663,1761420640523,-151.0,0.00031376,2]
[392389664,1761420640533,-151.0,0.00031376,2]
[392389665,1761420640542,-500.0,0.00031376,2]
[392389666,1761420640552,-151.0,0.00031376,2]
[392389667,1761420640562,-500.0,0.00031376,2]
[392389668,1761420640571,-250.0,0.00031376,2]
[392389669,1761420640581,-363.49852504,0.00031376,2]
[392389670,1761420640591,-500.0,0.00031376,2]
[392389671,1761420640601,-500.0,0.00031376,2]
[392389672,1761420640610,-3165.08887523,0.00031379,2]
[392389673,1761420640620,-163.35961837,0.00031379,2]
[392389674,1761420640630,-3165.08887518,0.00031382,2]
[392389675,1761420640641,-163.35961833,0.00031384,2]
[392389676,1761420640653,-3165.08887518,0.00031385,2]
[392389677,1761420640663,-3165.08887518,0.00031388,2]
[392389678,1761420640673,-163.35961833,0.00031388,2]
[392389679,1761420640684,-3165.08887518,0.00031391,2]
[392389680,1761420640694,-163.35961833,0.00031393,2]
[392389681,1761420640703,-3165.08887518,0.00031395,2]
[392389682,1761420640713,-6708.5054377,0.00031395,2]
[392389683,1761420640722,-827.6792374,0.00031395,2]
[392389684,1761420640733,-2468.3396744,0.00031395,2]
[392389685,1761420640743,-8573.7061364,0.00031395,2]
[392389686,1761420640753,-1000.0,0.00031397,2]
[392389687,1761420640762,-2500.0,0.00031397,2]
[392389688,1761420640771,-1689.09386253,0.00031397,2]
[392389689,1761420640780,-3165.08887518,0.00031398,2]
[392389690,1761420640791,-163.35961833,0.00031398,2]
[392389691,1761420640801,-1689.09386252,0.00031398,2]
[392389692,1761420640810,-1689.09386252,0.00031399,2]
[392389693,1761420640820,-1689.09386252,0.000314,2]
[392389694,1761420640830,-3165.08887518,0.00031401,2]
[392389695,1761420640841,-734.24345227,0.00031401,2]
[392389696,1761420643089,-954.85041025,0.00031401,2]
[392389697,1761420643099,-163.35961833,0.00031402,2]
[392389698,1761420643108,-601.18848262,0.00031403,2]
[392389699,1761420643119,-1087.9053799,0.00031403,2]
[392389700,1761420643128,-1281.20137301,0.00031404,2]
[392389701,1761420643252,-407.89248951,0.00031404,2]
[392389702,1761420643262,-279.10751131,0.00031404,2]
[392389703,1761420643273,-2240.55432072,0.00031404,2]
[392389704,1761420643284,-645.42704315,0.00031404,2]
[392389705,1761420643298,-1689.09386252,0.00031405,2]
[392389706,1761420643307,-1689.09386252,0.00031406,2]
[392389707,1761420643319,-62.78565783,0.00031407,2]
[392389708,1761420643336,-4937.21434217,0.00031407,2]
[392389709,1761420643345,-150.0,0.00031407,2]
[392389710,1761420643354,-500.0,0.00031407,2]
[392389711,1761420643364,-500.0,0.00031407,2]
[392389713,1761420643373,-150.45108351,0.00031407,2]
[392389714,1761420643382,-500.0,0.00031407,2]
[392389715,1761420643391,-500.0,0.00031407,2]
[392389716,1761420643399,-150.0,0.00031407,2]
[392389717,1761420643408,-500.0,0.00031407,2]
[392389718,1761420643418,-500.0,0.00031407,2]
[392389721,1761420643427,-150.0,0.00031407,2]
[392389723,1761420643606,-150.0,0.00031407,2]
[392389724,1761420643615,-300.0,0.00031407,2]
[392389725,1761420643624,-3165.08887518,0.00031407,2]
[392389726,1761420643634,-1151.00134942,0.00031407,2]
[392389727,1761420643643,-646.87581536,0.00031407,2]
[392389728,1761420643652,-1689.09386252,0.00031407,2]
[392389729,1761420643661,-16337.15669629,0.00031407,2]
[392389730,1761420643670,-163.35961833,0.00031407,2]
[392389731,1761420643680,-270.695175,0.00031407,30]
[392389733,1761420643688,-586.761398,0.00031407,30]
[392389734,1761420643697,-586.761398,0.00031407,30]
[392389735,1761420643707,-586.761398,0.00031407,30]
[392389736,1761420643716,-586.761398,0.00031407,30]
[392389737,1761420643725,-151.0,0.00031407,30]
[392389738,1761420643735,-178.432,0.00031407,30]
[392389739,1761420643744,-151.0,0.00031407,30]
[392389740,1761420643753,-151.0,0.00031407,30]
[392389741,1761420643762,-150.0,0.00031415,2]
[392389742,1761420643771,-600.0,0.00031431,2]
[392389743,1761420643780,-151.40871931,0.00031448,2]
[392389744,1761420643790,-290.51761115,0.00031462,2]
[392389745,1761420643801,-500.0,0.00031462,2]
[392389746,1761420643811,-500.0,0.00031462,2]
[392389747,1761420643821,-500.0,0.00031462,2]
[392389748,1761420643830,-500.0,0.00031462,2]
[392389749,1761420643839,-151.37309149,0.00031462,2]
[392389750,1761420643848,-500.0,0.00031462,2]
[392389751,1761420643857,-500.0,0.00031462,2]
[392389752,1761420643867,-150.0,0.00031462,2]
[392389753,1761420643876,-300.0,0.00031462,2]
[392389754,1761420643885,-210.36776354,0.0003147,2]
[392389755,1761420643895,-500.0,0.00031473,5]
[392389756,1761420643904,-500.0,0.00031473,5]
[392389757,1761420643913,-500.0,0.00031473,2]
[392389758,1761420643922,-500.0,0.00031473,5]
[392389759,1761420643931,-151.0,0.00031479,30]
[392389760,1761420643940,-220.624148,0.00031479,30]
[392389761,1761420643950,-151.0,0.00031479,30]
[392389762,1761420643959,-151.0,0.00031479,30]
[392389763,1761420643969,-211.538791,0.00031479,30]
[392389764,1761420643978,-211.538791,0.00031479,30]
[392389765,1761420643988,-151.0,0.00031479,30]
[392389766,1761420643997,-151.0,0.00031479,30]
[392389767,1761420644008,-211.538791,0.00031479,30]
[392389768,1761420644021,-211.538791,0.00031479,30]
[392389769,1761420644031,-151.0,0.00031479,30]
[392389770,1761420644040,-151.0,0.00031479,30]
[392389771,1761420644049,-151.0,0.00031479,30]
[392389772,1761420644058,-151.0,0.00031479,30]
[392389773,1761420644067,-151.0,0.00031479,30]
[392389774,1761420644077,-151.0,0.00031479,30]
[392389775,1761420644087,-151.0,0.00031479,30]
[392389776,1761420644097,-151.0,0.00031479,30]
[392389777,1761420644105,-151.0,0.00031479,30]
[392389778,1761420644115,-151.0,0.00031479,30]
[392389779,1761420644125,-151.0,0.00031479,30]
[392389780,1761420644134,-151.0,0.00031479,30]
[392389781,1761420644145,-151.0,0.00031479,30]
[392389782,1761420644154,-151.0,0.00031479,30]
[392389783,1761420644164,-151.0,0.00031479,30]
[392389784,1761420644173,-151.0,0.00031479,30]
[392389785,1761420644189,-152.379389,0.00031479,30]
[392389786,1761420644202,-151.0,0.00031479,30]
[392389787,1761420644211,-151.0,0.00031479,30]
[392389788,1761420644220,-301.999999,0.00031479,30]
[392389789,1761420644229,-151.0,0.00031479,30]
[392389790,1761420644239,-151.0,0.00031479,30]
[392389791,1761420644248,-151.0,0.00031479,30]
[392389792,1761420644257,-151.0,0.00031479,30]
[392389793,1761420644267,-151.0,0.00031479,30]
[392389794,1761420644277,-151.0,0.00031479,30]
[392389795,1761420644287,-586.761398,0.00031479,30]
[392389796,1761420644296,-586.761398,0.00031479,30]
[392389797,1761420644306,-586.761398,0.00031479,30]
[392389798,1761420644315,-586.761398,0.00031479,30]
[392389799,1761420644324,-151.0,0.00031479,30]
[392389800,1761420644334,-247.891672,0.00031479,30]
[392389801,1761420644344,-108582.25224562,0.00031479,2]
[392389802,1761420644355,-10368.55570397,0.00031479,2]
[392389803,1761420644364,-3862.0,0.00031479,2]
[392389804,1761420644374,-150.5,0.00031487,120]
[392389805,1761420644383,-220.67,0.00031487,120]
[392389806,1761420644392,-500.0,0.00031496,2]
[392389807,1761420644402,-2085.0,0.00031496,2]
[392389808,1761420644411,-264.92737603,0.00031497,2]
[392389809,1761420644421,-150.5,0.00031497,120]
[392389810,1761420644431,-150.5,0.00031497,120]